[Event "72nd RUS-ch Higher League 2019"]
[Site "Yaroslavl"]
[Date "2019.07.04"]
[Round "7.19"]
[White "Murzin, Volodar"]
[Black "Lomasov, Semyon"]
[Result "1/2-1/2"]
[ECO "C01"]
[WhiteElo "2418"]
[BlackElo "2542"]
[Annotator "ChessBase"]
[PlyCount "94"]
[EventDate "2019.06.27"]
[EventType "swiss"]
[EventCountry "RUS"]
[SourceTitle "playchess.com"]
[Source "ChessBase"]
[SourceQuality "1"]
[TimeControl "40/5400+30:1800+30"]

1. e4 {[%emt 0:00:00]} e6 {[%emt 0:00:00]} 2. d4 {[%emt 0:00:05]} d5 {[%emt 0:00:00]} 3. exd5 {[%emt 0:00:30]} exd5 {[%emt 0:00:00]} 4. Nf3 {[%emt 0:00:03]} Nc6 {[%emt 0:00:00]} 5. c3 {[%emt 0:05:41]} Bd6 {[%emt 0:00:50]} 6. Bd3 {[%emt 0:00:12]} Nge7 {[%emt 0:00:07]} 7. O-O {[%emt 0:00:22]} Bf5 {[%emt 0:00:15]} 8. Re1 {[%emt 0:10:52]} Qd7 {[%emt 0:13:34]} 9. Bxf5 {[%emt 0:04:19]} Qxf5 {[%emt 0:00:59]} 10. Nbd2 {[%emt 0:00:07]} O-O-O {[%emt 0:05:25]} 11. Nf1 {[%emt 0:00:35]} Ng6 {[%emt 0:08:24]} 12. Bd2 {[%emt 0:06:33]} Nce7 {[%emt 0:03:49]} 13. Qb1 {[%emt 0:08:40]} Qd7 {[%emt 0:06:42]} 14. Qd3 {[%emt 0:07:28]} f6 {[%emt 0:03:55]} 15. Re2 {[%emt 0:02:37]} Nf8 {[%emt 0:04:08]} 16. h4 {[%emt 0:11:49]} h6 {[%emt 0:05:45]} 17. Rae1 {[%emt 0:05:47]} g5 {[%emt 0:00:13]} 18. Ng3 {[%emt 0:01:29]} g4 {[%emt 0:03:50]} 19. Nh2 {[%emt 0:00:31]} h5 {[%emt 0:01:13]} 20. Bf4 {[%emt 0:05:23]} Nfg6 {[%emt 0:01:18]} 21. Bxd6 {[%emt 0:00:23]} cxd6 {[%emt 0:00:11]} 22. Qc2 {[%emt 0:02:42]} f5 {[%emt 0:03:21]} 23. Re6 {[%emt 0:03:13]} Rdf8 {[%emt 0:01:46]} 24. c4 {[%emt 0:05:30]} Kb8 {[%emt 0:03:33]} 25. cxd5 {[%emt 0:04:20]} f4 {[%emt 0:14:57]} 26. Ne4 {[%emt 0:03:35]} Nxh4 {[%emt 0:00:17]} 27. Rxd6 {[%emt 0:00:52]} Qf5 {[%emt 0:02:53]} 28. Qb3 {[%emt 0:01:07]} Nc8 {[%emt 0:01:41]} 29. Re6 {[%emt 0:00:55]} Nb6 {[%emt 0:07:07]} 30. Re5 {[%emt 0:01:14]} Qg6 {[%emt 0:00:29]} 31. a4 {[%emt 0:02:54]} f3 {[%emt 0:01:16]} 32. a5 {[%emt 0:03:05]} g3 {[%emt 0:02:12]} 33. Nxg3 {[%emt 0:01:11]} Nc8 {[%emt 0:00:25]} 34. d6 {[%emt 0:01:27]} Rh7 {[%emt 0:04:08]} 35. Qe6 {[%emt 0:01:09]} fxg2 {[%emt 0:01:47]} 36. Qh3 {[%emt 0:00:30]} Qf7 {[%emt 0:00:48]} 37. Ne4 {[%emt 0:00:41]} Ng6 {[%emt 0:00:01]} 38. Rg5 {[%emt 0:00:36]} Nf4 {[%emt 0:00:53]} 39. Qh4 {[%emt 0:00:19]} Qd7 {[%emt 0:00:41]} 40. Rg3 {[%emt 0:00:00]} Rhf7 {[%emt 0:00:00]} 41. Nf3 {[%emt 0:01:10]} Qb5 {[%emt 0:11:20]} 42. Ne5 {[%emt 0:03:28]} Ne2+ {[%emt 0:02:08]} 43. Kxg2 {[%emt 0:00:45]} Rf4 {[%emt 0:00:27]} 44. Qg5 {[%emt 0:06:18]} Rxe4 {[%emt 0:06:53]} 45. Qg7 {[%emt 0:00:25]} Nf4+ {[%emt 0:05:05]} 46. Kh2 {[%emt 0:00:20]} Rxe1 {[%emt 0:05:07]} 47. Qxf8 {[%emt 0:01:24]} Rh1+ {[%emt 0:02:46]} 1/2-1/2

[Event "72nd RUS-ch Higher League 2019"]
[Site "Yaroslavl"]
[Date "2019.07.04"]
[Round "7.20"]
[White "Shimanov, Aleksandr"]
[Black "Salemgareev, Tagir"]
[Result "0-1"]
[ECO "A45"]
[WhiteElo "2615"]
[BlackElo "2412"]
[Annotator "ChessBase"]
[PlyCount "92"]
[EventDate "2019.06.27"]
[EventType "swiss"]
[EventCountry "RUS"]
[SourceTitle "playchess.com"]
[Source "ChessBase"]
[SourceQuality "1"]
[TimeControl "40/5400+30:1800+30"]

1. d4 {[%emt 0:04:26]} Nf6 {[%emt 0:00:00]} 2. Bf4 {[%emt 0:00:13]} b6 {[%emt 0:03:21]} 3. f3 {[%emt 0:04:55]} d5 {[%emt 0:00:51]} 4. Nc3 {[%emt 0:00:24]} Bb7 {[%emt 0:00:52]} 5. g4 {[%emt 0:01:55]} e6 {[%emt 0:01:27]} 6. e3 {[%emt 0:01:14]} a6 {[%emt 0:00:28]} 7. h4 {[%emt 0:09:18]} c5 {[%emt 0:02:55]} 8. Qd2 {[%emt 0:01:14]} Nc6 {[%emt 0:00:35]} 9. h5 {[%emt 0:03:57]} h6 {[%emt 0:01:14]} 10. Nh3 b5 {[%emt 0:08:01]} 11. Ne2 {[%emt 0:02:44]} Qb6 {[%emt 0:05:20]} 12. Bg2 {[%emt 0:03:50]} Be7 {[%emt 0:02:37]} 13. Nf2 {[%emt 0:03:15]} c4 {[%emt 0:03:18]} 14. c3 {[%emt 0:01:49]} b4 {[%emt 0:07:41]} 15. O-O {[%emt 0:05:45]} a5 {[%emt 0:00:38]} 16. e4 {[%emt 0:02:54]} a4 17. e5 {[%emt 0:06:33]} Nd7 {[%emt 0:12:40]} 18. a3 {[%emt 0:00:05]} bxa3 {[%emt 0:01:01]} 19. bxa3 {[%emt 0:00:00]} Na5 {[%emt 0:01:04]} 20. Ra2 {[%emt 0:04:41]} Nb3 {[%emt 0:01:19]} 21. Qc2 {[%emt 0:01:06]} O-O-O {[%emt 0:07:48]} 22. Bg3 Rdg8 23. f4 {[%emt 0:03:15]} g6 {[%emt 0:02:37]} 24. hxg6 {[%emt 0:02:54]} fxg6 {[%emt 0:00:12]} 25. f5 {[%emt 0:01:07]} gxf5 {[%emt 0:00:30]} 26. gxf5 exf5 {[%emt 0:00:06]} 27. Qxf5 {[%emt 0:01:01]} Rf8 {[%emt 0:06:15]} 28. Qh3 {[%emt 0:00:42]} Rhg8 {[%emt 0:06:27]} 29. Bh2 {[%emt 0:07:50]} Bc6 {[%emt 0:05:02]} 30. Nf4 {[%emt 0:02:01]} Kb7 {[%emt 0:02:17]} 31. Ng4 {[%emt 0:03:21]} Qa5 {[%emt 0:01:37]} 32. Nxh6 {[%emt 0:04:31]} Rg7 {[%emt 0:06:22]} 33. Ne6 {[%emt 0:09:32]} Rxf1+ {[%emt 0:00:52]} 34. Kxf1 {[%emt 0:00:03]} Rh7 {[%emt 0:04:26]} 35. Bf4 {[%emt 0:00:41]} Rh8 {[%emt 0:01:07]} 36. Qg3 {[%emt 0:01:54]} Nf8 {[%emt 0:01:01]} 37. Ng7 {[%emt 0:00:50]} Bh4 38. Qxh4 {[%emt 0:02:57]} Ng6 {[%emt 0:03:44]} 39. Qg3 {[%emt 0:00:49]} Nxf4 {[%emt 0:00:14]} 40. Ngf5 {[%emt 0:00:00]} Nd3 {[%emt 0:00:00]} 41. Qg7+ {[%emt 0:06:25]} Ka6 {[%emt 0:06:19]} 42. Qf6 {[%emt 0:09:37]} Rc8 {[%emt 0:08:34]} 43. Rc2 {[%emt 0:03:51]} Na1 {[%emt 0:00:35]} 44. Ne7 {[%emt 0:00:39]} Nxc2 {[%emt 0:00:47]} 45. Nxc6 {[%emt 0:13:37]} Qb6 {[%emt 0:02:31]} 46. Ne7 {[%emt 0:01:12]} Rf8 {[%emt 0:00:40]} 0-1

[Event "72nd RUS-ch Higher League 2019"]
[Site "Yaroslavl"]
[Date "2019.07.04"]
[Round "7.21"]
[White "Levin, Evgeny A."]
[Black "Nozdrachev, Vladislav"]
[Result "1-0"]
[ECO "D56"]
[WhiteElo "2504"]
[BlackElo "2481"]
[Annotator "ChessBase"]
[PlyCount "105"]
[EventDate "2019.06.27"]
[EventType "swiss"]
[EventCountry "RUS"]
[SourceTitle "playchess.com"]
[Source "ChessBase"]
[SourceQuality "1"]
[TimeControl "40/5400+30:1800+30"]

1. d4 {[%emt 0:00:58]} Nf6 {[%emt 0:00:00]} 2. c4 {[%emt 0:00:07]} e6 {[%emt 0:00:00]} 3. Nf3 {[%emt 0:00:09]} d5 {[%emt 0:00:00]} 4. Nc3 {[%emt 0:00:07]} Be7 {[%emt 0:00:13]} 5. Bg5 {[%emt 0:01:10]} h6 {[%emt 0:00:08]} 6. Bh4 {[%emt 0:00:04]} O-O {[%emt 0:00:07]} 7. e3 {[%emt 0:00:03]} Nbd7 {[%emt 0:00:06]} 8. Rc1 {[%emt 0:00:55]} c6 {[%emt 0:03:36]} 9. Bd3 {[%emt 0:03:01]} dxc4 {[%emt 0:13:21]} 10. Bxc4 {[%emt 0:00:56]} b5 {[%emt 0:00:08]} 11. Bd3 {[%emt 0:02:17]} Bb7 {[%emt 0:00:09]} 12. O-O {[%emt 0:10:19]} a6 {[%emt 0:00:22]} 13. a4 {[%emt 0:01:30]} Rc8 {[%emt 0:02:14]} 14. Qe2 {[%emt 0:04:59]} Nb6 {[%emt 0:04:28]} 15. Ne5 Nfd7 {[%emt 0:11:02]} 16. Bg3 {[%emt 0:16:57]} Nxa4 {[%emt 0:07:57]} 17. Nxa4 {[%emt 0:03:51]} Nxe5 {[%emt 0:01:08]} 18. Bxe5 {[%emt 0:01:06]} bxa4 {[%emt 0:00:03]} 19. Qg4 {[%emt 0:15:46]} Bg5 {[%emt 0:00:13]} 20. f4 {[%emt 0:04:54]} f5 {[%emt 0:01:18]} 21. Qh5 {[%emt 0:08:30]} Bf6 {[%emt 0:01:41]} 22. Bc4 {[%emt 0:01:12]} Qe7 {[%emt 0:05:13]} 23. Qxf5 {[%emt 0:00:37]} Rce8 {[%emt 0:00:20]} 24. Qg6 {[%emt 0:12:14]} Qf7 {[%emt 0:03:54]} 25. Qg4 {[%emt 0:06:55]} Kh8 {[%emt 0:04:33]} 26. Bd3 {[%emt 0:00:15]} Rd8 27. Bg6 {[%emt 0:00:28]} Qe7 {[%emt 0:02:11]} 28. Bc2 {[%emt 0:02:33]} g5 29. Qh5 {[%emt 0:00:14]} Qg7 {[%emt 0:07:35]} 30. fxg5 {[%emt 0:00:13]} Bxe5 {[%emt 0:00:28]} 31. gxh6 {[%emt 0:00:31]} Bxh2+ {[%emt 0:00:42]} 32. Kxh2 Qc7+ 33. Qe5+ {[%emt 0:02:55]} Qxe5+ {[%emt 0:00:35]} 34. dxe5 {[%emt 0:00:02]} c5 {[%emt 0:00:11]} 35. Rcd1 {[%emt 0:00:43]} Bd5 {[%emt 0:00:27]} 36. Bg6 {[%emt 0:00:51]} Rxf1 {[%emt 0:02:35]} 37. Rxf1 {[%emt 0:00:03]} Rg8 {[%emt 0:00:06]} 38. Rf6 {[%emt 0:00:39]} c4 {[%emt 0:00:07]} 39. e4 {[%emt 0:00:13]} Bb7 {[%emt 0:05:42]} 40. Bf7 {[%emt 0:00:00]} Rg5 {[%emt 0:00:00]} 41. Bg6 {[%emt 0:18:53]} Rxg6 {[%emt 0:03:49]} 42. Rxg6 {[%emt 0:00:03]} c3 {[%emt 0:00:57]} 43. bxc3 {[%emt 0:00:04]} a3 {[%emt 0:00:04]} 44. Rf6 {[%emt 0:00:29]} Bxe4 {[%emt 0:00:25]} 45. Rf1 {[%emt 0:02:49]} a2 {[%emt 0:00:32]} 46. Ra1 {[%emt 0:00:04]} Bd5 {[%emt 0:00:05]} 47. g4 {[%emt 0:00:17]} Kh7 {[%emt 0:00:08]} 48. g5 {[%emt 0:00:05]} a5 {[%emt 0:00:16]} 49. Kg3 {[%emt 0:00:06]} a4 {[%emt 0:00:06]} 50. Kf4 {[%emt 0:00:05]} Bb3 {[%emt 0:00:14]} 51. Ke3 {[%emt 0:00:22]} Bc4 {[%emt 0:00:12]} 52. Kd4 {[%emt 0:00:03]} Bb3 {[%emt 0:00:04]} 53. c4 {[%emt 0:00:27]} 1-0

[Event "72nd RUS-ch Higher League 2019"]
[Site "Yaroslavl"]
[Date "2019.07.04"]
[Round "7.22"]
[White "Yanchenko, Roman"]
[Black "Samojlov, Anton"]
[Result "1-0"]
[ECO "A47"]
[WhiteElo "2478"]
[BlackElo "2350"]
[Annotator "ChessBase"]
[PlyCount "113"]
[EventDate "2019.06.27"]
[EventType "swiss"]
[EventCountry "RUS"]
[SourceTitle "playchess.com"]
[Source "ChessBase"]
[SourceQuality "1"]
[TimeControl "40/5400+30:1800+30"]

1. d4 {[%emt 0:00:00]} Nf6 {[%emt 0:00:10]} 2. Nf3 {[%emt 0:00:00]} b6 {[%emt 0:00:17]} 3. Bf4 {[%emt 0:00:58]} Bb7 {[%emt 0:00:19]} 4. e3 {[%emt 0:00:17]} g6 {[%emt 0:00:38]} 5. Bd3 {[%emt 0:00:47]} d6 {[%emt 0:00:54]} 6. Nbd2 {[%emt 0:00:20]} Bg7 {[%emt 0:00:18]} 7. Qe2 {[%emt 0:02:51]} Nfd7 {[%emt 0:07:30]} 8. h4 {[%emt 0:05:22]} e5 {[%emt 0:00:48]} 9. Bh2 {[%emt 0:00:04]} Qe7 {[%emt 0:00:53]} 10. dxe5 {[%emt 0:01:40]} dxe5 {[%emt 0:02:16]} 11. e4 {[%emt 0:00:28]} Nc5 {[%emt 0:03:03]} 12. Bc4 {[%emt 0:04:55]} Nc6 {[%emt 0:08:17]} 13. Bd5 {[%emt 0:02:16]} O-O-O {[%emt 0:08:47]} 14. O-O-O {[%emt 0:03:39]} f5 {[%emt 0:21:54]} 15. Rhe1 {[%emt 0:13:17]} f4 {[%emt 0:08:50]} 16. Nb3 {[%emt 0:01:42]} Ba6 {[%emt 0:07:54]} 17. Bc4 {[%emt 0:01:09]} Bb7 {[%emt 0:00:58]} 18. g3 {[%emt 0:18:53]} fxg3 {[%emt 0:10:56]} 19. Bxg3 {[%emt 0:01:57]} Ne6 {[%emt 0:09:06]} 20. Kb1 {[%emt 0:05:56]} Kb8 {[%emt 0:01:16]} 21. Ba6 {[%emt 0:04:12]} Ba8 {[%emt 0:00:33]} 22. c3 {[%emt 0:00:28]} Rhf8 {[%emt 0:00:13]} 23. Nfd2 {[%emt 0:03:00]} Nf4 {[%emt 0:00:30]} 24. Qf1 {[%emt 0:01:09]} Nh5 {[%emt 0:01:09]} 25. Qb5 {[%emt 0:00:17]} Qe6 {[%emt 0:03:28]} 26. a4 {[%emt 0:08:57]} Bh6 {[%emt 0:00:37]} 27. Nc4 {[%emt 0:00:46]} Nxg3 {[%emt 0:00:56]} 28. fxg3 {[%emt 0:01:59]} Ne7 {[%emt 0:00:10]} 29. Rxd8+ {[%emt 0:01:03]} Rxd8 {[%emt 0:00:02]} 30. Qxe5 {[%emt 0:00:06]} Qxe5 {[%emt 0:00:56]} 31. Nxe5 {[%emt 0:00:03]} Bg7 {[%emt 0:00:13]} 32. Nf3 {[%emt 0:01:16]} Re8 {[%emt 0:01:19]} 33. Nbd2 {[%emt 0:01:43]} c5 {[%emt 0:00:40]} 34. Kc2 {[%emt 0:01:16]} Nc6 {[%emt 0:00:14]} 35. Bc4 {[%emt 0:03:21]} Bb7 {[%emt 0:00:52]} 36. Bd5 {[%emt 0:03:35]} Rf8 {[%emt 0:00:04]} 37. Ng5 {[%emt 0:00:42]} Be5 {[%emt 0:00:49]} 38. Nxh7 {[%emt 0:04:22]} Rh8 {[%emt 0:00:28]} 39. Ng5 {[%emt 0:00:30]} Bxg3 {[%emt 0:00:02]} 40. Rg1 {[%emt 0:00:00]} Bh2 {[%emt 0:00:00]} 41. Rg2 {[%emt 0:00:42]} Bc7 {[%emt 0:03:29]} 42. Ngf3 {[%emt 0:04:39]} Ne7 {[%emt 0:01:45]} 43. Bxb7 {[%emt 0:00:05]} Kxb7 {[%emt 0:00:02]} 44. Kd3 {[%emt 0:01:14]} a6 {[%emt 0:03:25]} 45. e5 {[%emt 0:04:02]} b5 {[%emt 0:00:34]} 46. axb5 {[%emt 0:00:14]} axb5 {[%emt 0:00:01]} 47. Ne4 {[%emt 0:02:28]} Kc6 {[%emt 0:00:28]} 48. Neg5 {[%emt 0:01:50]} Ra8 {[%emt 0:08:43]} 49. Ne6 {[%emt 0:02:08]} Ra4 {[%emt 0:03:02]} 50. b3 {[%emt 0:02:40]} Ra3 {[%emt 0:00:07]} 51. Ke4 {[%emt 0:00:25]} Kb6 {[%emt 0:04:34]} 52. Nf4 {[%emt 0:01:38]} Rxb3 {[%emt 0:02:35]} 53. Nxg6 {[%emt 0:00:14]} Nc6 {[%emt 0:01:16]} 54. h5 {[%emt 0:00:18]} b4 {[%emt 0:01:19]} 55. h6 {[%emt 0:00:13]} bxc3 {[%emt 0:00:55]} 56. h7 {[%emt 0:00:15]} Rb2 {[%emt 0:00:06]} 57. Rxb2+ {[%emt 0:00:28]} 1-0

[Event "72nd RUS-ch Higher League 2019"]
[Site "Yaroslavl"]
[Date "2019.07.04"]
[Round "7.25"]
[White "Drygalov, Sergey"]
[Black "Eraschenkov, Denis"]
[Result "0-1"]
[ECO "A48"]
[WhiteElo "2492"]
[BlackElo "2379"]
[Annotator "ChessBase"]
[PlyCount "72"]
[EventDate "2019.06.27"]
[EventType "swiss"]
[EventCountry "RUS"]
[SourceTitle "playchess.com"]
[Source "ChessBase"]
[SourceQuality "1"]
[TimeControl "40/5400+30:1800+30"]

1. d4 {[%emt 0:00:00]} Nf6 {[%emt 0:00:00]} 2. Nf3 {[%emt 0:00:00]} g6 {[%emt 0:00:00]} 3. c4 {[%emt 0:00:00]} Bg7 {[%emt 0:00:04]} 4. g3 {[%emt 0:00:00]} c6 {[%emt 0:00:14]} 5. Bg2 {[%emt 0:01:16]} d5 {[%emt 0:00:11]} 6. Nbd2 {[%emt 0:00:19]} O-O {[%emt 0:01:44]} 7. O-O {[%emt 0:00:04]} Bf5 {[%emt 0:00:10]} 8. b3 {[%emt 0:03:02]} a5 {[%emt 0:01:13]} 9. Nh4 {[%emt 0:04:20]} Be6 {[%emt 0:02:51]} 10. e3 {[%emt 0:01:23]} c5 {[%emt 0:14:41]} 11. Bb2 {[%emt 0:03:15]} cxd4 {[%emt 0:03:07]} 12. Bxd4 {[%emt 0:00:04]} Nc6 {[%emt 0:00:58]} 13. Bc3 {[%emt 0:01:38]} Bg4 {[%emt 0:29:17]} 14. Nhf3 {[%emt 0:09:21]} e5 {[%emt 0:11:35]} 15. h3 {[%emt 0:01:16]} d4 {[%emt 0:01:53]} 16. exd4 {[%emt 0:01:14]} exd4 {[%emt 0:00:10]} 17. Bb2 {[%emt 0:00:08]} Bf5 {[%emt 0:03:27]} 18. a3 {[%emt 0:07:57]} Qb6 {[%emt 0:01:45]} 19. Ne1 {[%emt 0:20:50]} h5 {[%emt 0:02:06]} 20. Rc1 {[%emt 0:01:08]} Nd7 {[%emt 0:09:06]} 21. g4 {[%emt 0:12:07]} hxg4 {[%emt 0:00:06]} 22. hxg4 {[%emt 0:00:02]} Be6 {[%emt 0:00:10]} 23. Ne4 {[%emt 0:02:21]} Nc5 {[%emt 0:01:02]} 24. Nxc5 {[%emt 0:01:48]} Qxc5 {[%emt 0:00:05]} 25. Nd3 {[%emt 0:00:16]} Qg5 {[%emt 0:00:50]} 26. Qf3 {[%emt 0:05:20]} Bxg4 {[%emt 0:01:15]} 27. Qg3 {[%emt 0:03:51]} Qf5 {[%emt 0:00:35]} 28. Rce1 {[%emt 0:01:34]} Rfe8 {[%emt 0:02:34]} 29. Nf4 {[%emt 0:00:55]} Be5 {[%emt 0:05:23]} 30. Re4 {[%emt 0:00:46]} g5 {[%emt 0:01:25]} 31. f3 {[%emt 0:00:10]} Bxf4 {[%emt 0:00:30]} 32. Qxg4 {[%emt 0:00:05]} Qg6 {[%emt 0:02:02]} 33. Qd7 {[%emt 0:03:28]} Rxe4 {[%emt 0:01:32]} 34. fxe4 {[%emt 0:00:07]} Rd8 {[%emt 0:01:14]} 35. Qh3 {[%emt 0:00:22]} Ne5 {[%emt 0:00:50]} 36. Rd1 {[%emt 0:00:26]} g4 {[%emt 0:00:21]} 0-1

[Event "72nd RUS-ch Higher League 2019"]
[Site "Yaroslavl"]
[Date "2019.07.04"]
[Round "7.26"]
[White "Bykov, Oleg"]
[Black "Bigaliev, Renat"]
[Result "1/2-1/2"]
[ECO "D20"]
[WhiteElo "2401"]
[BlackElo "2427"]
[Annotator "NA"]
[PlyCount "117"]
[EventDate "2019.06.27"]
[EventType "swiss"]
[EventCountry "RUS"]
[SourceTitle "playchess.com"]
[Source "ChessBase"]
[SourceQuality "1"]
[TimeControl "40/5400+30:1800+30"]

1. d4 {[%emt 0:00:00]} d5 {[%emt 0:00:00]} 2. c4 {[%emt 0:00:00]} dxc4 {[%emt 0:00:00]} 3. e4 {[%emt 0:00:00]} e5 {[%emt 0:00:00]} 4. Nf3 {[%emt 0:00:46]} exd4 {[%emt 0:00:00]} 5. Bxc4 {[%emt 0:00:16]} Bb4+ {[%emt 0:00:01]} 6. Nbd2 {[%emt 0:03:07]} Nc6 {[%emt 0:00:41]} 7. O-O {[%emt 0:00:58]} Nf6 {[%emt 0:00:14]} 8. e5 {[%emt 0:02:04]} Nd5 {[%emt 0:00:08]} 9. Nb3 {[%emt 0:08:10]} Nb6 {[%emt 0:00:42]} 10. Bb5 {[%emt 0:01:30]} Bd7 {[%emt 0:00:20]} 11. Nbxd4 {[%emt 0:12:41]} Nxd4 {[%emt 0:00:59]} 12. Nxd4 {[%emt 0:00:40]} Bxb5 {[%emt 0:01:21]} 13. Nxb5 {[%emt 0:00:04]} a6 {[%emt 0:00:25]} 14. Qg4 {[%emt 0:08:16]} axb5 {[%emt 0:00:49]} 15. Qxb4 {[%emt 0:00:14]} Qd7 {[%emt 0:02:21]} 16. b3 {[%emt 0:02:42]} Nd5 {[%emt 0:03:12]} 17. Qd4 {[%emt 0:04:36]} Ne7 {[%emt 0:09:07]} 18. Qc3 {[%emt 0:02:12]} Qc6 {[%emt 0:05:42]} 19. Qg3 {[%emt 0:02:30]} Qg6 {[%emt 0:08:04]} 20. Qf3 {[%emt 0:00:45]} c6 {[%emt 0:02:14]} 21. a4 {[%emt 0:05:33]} Nd5 {[%emt 0:24:45]} 22. Ba3 {[%emt 0:05:12]} b4 {[%emt 0:01:44]} 23. Bb2 {[%emt 0:00:44]} O-O {[%emt 0:00:29]} 24. Rac1 {[%emt 0:02:17]} Qe6 {[%emt 0:07:05]} 25. Rc4 {[%emt 0:04:06]} b6 {[%emt 0:01:30]} 26. Qe4 {[%emt 0:07:07]} Rfe8 {[%emt 0:03:50]} 27. Re1 {[%emt 0:05:48]} c5 {[%emt 0:02:31]} 28. h3 {[%emt 0:03:23]} Red8 {[%emt 0:09:02]} 29. g4 {[%emt 0:01:07]} Ne7 {[%emt 0:01:01]} 30. f4 {[%emt 0:02:09]} Qd5 {[%emt 0:02:24]} 31. e6 {[%emt 0:02:22]} f6 {[%emt 0:02:20]} 32. Kf2 {[%emt 0:04:01]} Qxe4 {[%emt 0:01:19]} 33. Rcxe4 {[%emt 0:00:50]} Rd5 {[%emt 0:03:19]} 34. h4 {[%emt 0:02:15]} h6 {[%emt 0:02:21]} 35. Rg1 {[%emt 0:02:06]} Rd2+ {[%emt 0:02:56]} 36. Re2 {[%emt 0:00:05]} Rd3 {[%emt 0:00:30]} 37. Re3 {[%emt 0:01:22]} Rd2+ {[%emt 0:00:11]} 38. Re2 {[%emt 0:00:04]} Rad8 {[%emt 0:00:48]} 39. g5 {[%emt 0:00:47]} fxg5 {[%emt 0:02:05]} 40. hxg5 {[%emt 0:00:00]} h5 {[%emt 0:00:00]} 41. Be5 {[%emt 0:08:25]} Rxe2+ {[%emt 0:12:50]} 42. Kxe2 {[%emt 0:00:05]} Nf5 {[%emt 0:05:27]} 43. g6 {[%emt 0:20:14]} Nd4+ {[%emt 0:06:58]} 44. Bxd4 {[%emt 0:00:34]} Rxd4 {[%emt 0:00:10]} 45. Ke3 {[%emt 0:00:07]} Kf8 {[%emt 0:01:07]} 46. Rg5 {[%emt 0:00:42]} Rd6 {[%emt 0:01:45]} 47. Re5 {[%emt 0:03:53]} Ke7 {[%emt 0:00:59]} 48. f5 {[%emt 0:00:03]} h4 {[%emt 0:00:53]} 49. a5 {[%emt 0:06:35]} h3 {[%emt 0:00:54]} 50. f6+ {[%emt 0:00:41]} gxf6 {[%emt 0:01:06]} 51. g7 {[%emt 0:00:05]} Rd8 {[%emt 0:00:16]} 52. Rh5 {[%emt 0:00:07]} Rg8 {[%emt 0:02:06]} 53. axb6 {[%emt 0:00:54]} Rxg7 {[%emt 0:01:01]} 54. b7 {[%emt 0:00:18]} Rg8 {[%emt 0:00:09]} 55. Rxh3 {[%emt 0:01:00]} Kxe6 {[%emt 0:00:28]} 56. Kd3 {[%emt 0:00:30]} Kd5 {[%emt 0:00:51]} 57. Rf3 {[%emt 0:00:30]} Kc6 {[%emt 0:02:35]} 58. Rxf6+ {[%emt 0:00:18]} Kxb7 {[%emt 0:00:42]} 59. Kc4 {[%emt 0:00:07]} 1/2-1/2

[Event "72nd RUS-ch Higher League 2019"]
[Site "Yaroslavl"]
[Date "2019.07.04"]
[Round "7.28"]
[White "Lesovoi, Evgenij"]
[Black "Rychkov, Oleg"]
[Result "0-1"]
[ECO "D30"]
[WhiteElo "2366"]
[BlackElo "2409"]
[Annotator "NA"]
[PlyCount "90"]
[EventDate "2019.06.27"]
[EventType "swiss"]
[EventCountry "RUS"]
[SourceTitle "playchess.com"]
[Source "ChessBase"]
[SourceQuality "1"]
[TimeControl "40/5400+30:1800+30"]

1. d4 {[%emt 0:00:41]} d5 {[%emt 0:00:00]} 2. c4 {[%emt 0:00:25]} e6 {[%emt 0:00:22]} 3. Nf3 {[%emt 0:00:12]} a6 {[%emt 0:00:15]} 4. e3 {[%emt 0:05:33]} Nf6 {[%emt 0:01:00]} 5. Nbd2 {[%emt 0:02:04]} c5 {[%emt 0:01:31]} 6. b3 {[%emt 0:01:32]} cxd4 {[%emt 0:02:38]} 7. exd4 {[%emt 0:00:19]} Nc6 {[%emt 0:00:15]} 8. Bb2 {[%emt 0:00:57]} Bd6 {[%emt 0:05:17]} 9. Bd3 {[%emt 0:01:46]} O-O {[%emt 0:00:53]} 10. O-O {[%emt 0:00:30]} b6 {[%emt 0:01:03]} 11. Rc1 {[%emt 0:06:32]} Bb7 {[%emt 0:02:37]} 12. Qe2 {[%emt 0:10:01]} Bf4 {[%emt 0:06:33]} 13. Rfd1 {[%emt 0:04:44]} Re8 {[%emt 0:08:53]} 14. a3 {[%emt 0:03:53]} dxc4 {[%emt 0:15:04]} 15. bxc4 {[%emt 0:01:13]} Qc7 {[%emt 0:00:08]} 16. Rb1 {[%emt 0:08:30]} e5 {[%emt 0:05:38]} 17. d5 {[%emt 0:01:33]} Nd4 {[%emt 0:00:11]} 18. Bxd4 {[%emt 0:03:54]} exd4 {[%emt 0:00:06]} 19. Qf1 {[%emt 0:00:05]} b5 {[%emt 0:01:04]} 20. cxb5 {[%emt 0:04:44]} Nxd5 {[%emt 0:01:52]} 21. bxa6 {[%emt 0:00:26]} Bc6 {[%emt 0:00:42]} 22. Re1 {[%emt 0:05:24]} Red8 {[%emt 0:04:41]} 23. Bc4 {[%emt 0:10:36]} d3 {[%emt 0:07:36]} 24. Ne4 {[%emt 0:06:41]} Nc3 {[%emt 0:03:02]} 25. Bxd3 {[%emt 0:02:52]} Nxb1 {[%emt 0:00:31]} 26. Bxb1 {[%emt 0:00:36]} Qa5 {[%emt 0:05:18]} 27. Qc4 {[%emt 0:02:02]} Bd5 {[%emt 0:00:08]} 28. Qc2 {[%emt 0:00:56]} Kf8 {[%emt 0:03:05]} 29. g3 {[%emt 0:10:05]} Rac8 {[%emt 0:04:38]} 30. Qb2 {[%emt 0:01:54]} Bd6 {[%emt 0:00:42]} 31. Re3 {[%emt 0:00:22]} Bxe4 {[%emt 0:02:10]} 32. Bxe4 {[%emt 0:00:33]} Bc5 {[%emt 0:00:29]} 33. Re2 {[%emt 0:01:54]} Re8 {[%emt 0:08:43]} 34. Bb7 {[%emt 0:01:05]} Rxe2 {[%emt 0:00:24]} 35. Qxe2 {[%emt 0:00:08]} Re8 {[%emt 0:00:05]} 36. Qc2 {[%emt 0:00:58]} h6 {[%emt 0:03:03]} 37. a4 {[%emt 0:00:16]} Qb4 {[%emt 0:00:52]} 38. Qf5 {[%emt 0:02:23]} g6 {[%emt 0:01:30]} 39. Qf6 {[%emt 0:00:15]} Re2 {[%emt 0:00:54]} 40. Bd5 {[%emt 0:00:00]} Qb1+ {[%emt 0:00:00]} 41. Kg2 {[%emt 0:01:14]} Rxf2+ {[%emt 0:00:36]} 42. Kh3 {[%emt 0:00:01]} Qf1+ {[%emt 0:00:26]} 43. Kg4 {[%emt 0:03:45]} h5+ {[%emt 0:00:07]} 44. Kf4 {[%emt 0:00:06]} Qc1+ {[%emt 0:00:06]} 45. Ke4 {[%emt 0:00:04]} Qe3# {[%emt 0:00:05] Kd4} 0-1